fUSD/lending_fUSD_20251014
["ID","MTS","AMOUNT","RATE_DAILY","PERIOD"]
[391236725,1760424638363,-24499.99977243,0.00027056,2]
[391236862,1760424640021,-1704.41884933,0.00027056,2]
[391236864,1760424640033,-3508.50085815,0.00027056,2]
[391236866,1760424640044,-989.800004,0.00027056,2]
[391236869,1760424640060,-365.58502805,0.00027056,2]
[391236884,1760424640199,-127287.08941773,0.00027056,2]
[391236886,1760424640209,-38505.00104538,0.00027056,2]
[391236888,1760424640219,-361.77023649,0.00027067,2]
[391236890,1760424640228,-5052.28934357,0.00027071,2]
[391236892,1760424640238,-428376.15953157,0.00027074,2]
[391236894,1760424640247,-1943.30040783,0.00027076,2]
[391236896,1760424640256,-428376.15953157,0.00027081,2]
[391236898,1760424640267,-361.77023649,0.00027082,2]
[391236900,1760424640276,-36884.4579762,0.00027084,2]
[391236902,1760424640286,-904.09603202,0.00027084,2]
[391236904,1760424640296,-19548.74675221,0.00027084,2]
[391236906,1760424640309,-560.66637088,0.00027091,2]
[391236908,1760424640319,-168.19991126,0.00027095,2]
[391236910,1760424640332,-1187.70590218,0.00027099,2]
[391236912,1760424640342,-556.40550671,0.00027102,2]
[391236913,1760424640351,-245.70586042,0.00027102,2]
[391236916,1760424640362,-169.64521857,0.00027104,2]
[391236917,1760424640371,-5016.46984621,0.00027107,2]
[391236920,1760424640381,-7650.55205569,0.00027107,2]
[391236922,1760424640392,-151.32288235,0.00027109,2]
[391236924,1760424640404,-7650.55205569,0.00027113,2]
[391236926,1760424640415,-1943.30040783,0.00027121,2]
[391236928,1760424640424,-168.19991126,0.00027123,2]
[391236930,1760424640434,-560.66637088,0.00027123,2]
[391236932,1760424640443,-182423.05190955,0.00027131,2]
[391236934,1760424640453,-11841.13175602,0.00027134,2]
[391236936,1760424640463,-361.77023649,0.00027136,2]
[391236938,1760424640472,-151.32288235,0.00027136,2]
[391236940,1760424640481,-5052.28934357,0.00027138,2]
[391236942,1760424640491,-2124.11125495,0.00027139,2]
[391236944,1760424640500,-2124.11125495,0.00027139,2]
[391236946,1760424640509,-221238.91324672,0.0002714,2]
[391236947,1760424640518,-221238.91324672,0.00027142,2]
[391236950,1760424640528,-5052.28934357,0.00027142,2]
[391236952,1760424640537,-245.70586042,0.00027143,2]
[391236954,1760424640547,-36884.4579762,0.00027145,2]
[391236956,1760424640558,-290.0,0.00027145,2]
[391236958,1760424640567,-1187.70590218,0.00027147,2]
[391236960,1760424640577,-19548.74675221,0.00027147,2]
[391236962,1760424640586,-245.70586042,0.00027148,2]
[391236964,1760424640599,-18095.98163875,0.00027155,2]
[391236966,1760424640609,-19548.74675221,0.00027155,2]
[391236968,1760424640619,-1187.70590218,0.00027163,2]
[391236970,1760424640630,-15380.08957526,0.00027163,2]
[391236972,1760424640639,-1943.30040783,0.00027165,2]
[391236974,1760424640649,-556.40550671,0.00027166,2]
[391236976,1760424640658,-166.92165201,0.00027166,2]
[391236978,1760424640667,-7650.55205569,0.00027167,2]
[391236980,1760424640677,-38505.00104538,0.00027168,2]
[391236982,1760424640686,-290.0,0.00027171,2]
[391236984,1760424640696,-166.92165201,0.00027174,2]
[391236986,1760424640705,-15380.08957526,0.00027175,2]
[391236988,1760424640716,-2779.43930985,0.00027175,2]
[391236990,1760424640726,-2606.76266243,0.00027175,2]
[391236992,1760424640736,-36884.4579762,0.00027176,2]
[391236994,1760424640746,-168.19991126,0.00027177,2]
[391236996,1760424640756,-2124.11125495,0.00027178,2]
[391236998,1760424640765,-174.0,0.00027185,7]
[391237000,1760424640776,-38505.00104538,0.00027185,2]
[391237003,1760424640786,-263.28488049,0.00027185,2]
[391237004,1760424640795,-556.40550671,0.00027191,2]
[391237007,1760424640808,-15380.08957526,0.00027191,2]
[391237009,1760424640818,-2606.76266243,0.00027193,2]
[391237011,1760424640828,-11841.13175602,0.00027196,2]
[391237013,1760424640838,-166.92165201,0.00027197,2]
[391237015,1760424640847,-5016.46984621,0.00027197,2]
[391237017,1760424640857,-151.32288235,0.00027199,2]
[391237019,1760424640866,-801.91741046,0.00027204,2]
[391237029,1760424640954,-2996.70193894,0.00027204,2]
[391237083,1760424645068,-980.16801725,0.000255,5]
[391237084,1760424645082,-4533.83198275,0.000255,5]
[391237085,1760424645092,-6397.1917602,0.00027204,2]
[391237087,1760424645103,-152.59,0.00027205,7]
[391237088,1760424645113,-1943.30040783,0.00027209,2]
[391237089,1760424645123,-2049.0,0.00027214,2]
[391237090,1760424645133,-749.0,0.00027214,2]
[391237091,1760424645143,-1267.0,0.00027214,2]
[391237092,1760424645154,-3406.0,0.00027214,2]
[391237093,1760424645164,-1316.873,0.00027214,2]
[391237094,1760424645174,-572.604,0.00027214,2]
[391237095,1760424645184,-605.599,0.00027214,2]
[391237096,1760424645194,-1588.0,0.00027214,2]
[391237097,1760424645204,-818.0,0.00027214,2]
[391237098,1760424645214,-556.0,0.00027214,2]
[391237099,1760424645224,-4014.0,0.00027214,2]
[391237100,1760424645234,-6442.0,0.00027214,2]
[391237101,1760424645244,-150.094,0.00027214,2]
[391237102,1760424645253,-1358.344,0.00027214,2]
[391237103,1760424645263,-290.0,0.00027222,2]
[391237104,1760424645273,-1943.30040783,0.00027253,2]
[391237105,1760424645282,-1000.0,0.00027253,2]
[391237106,1760424645293,-10195.8111096,0.00027257,2]
[391237108,1760424645302,-5102.0,0.00027273,2]
[391237110,1760424645319,-150.3,0.00027273,2]
[391237111,1760424645332,-10195.8111096,0.00027277,2]
[391237113,1760424645341,-20391.6222193,0.00027287,2]
[391237114,1760424645351,-177.0919926,0.00027287,2]
[391237115,1760424645361,-214.73929889,0.00027287,2]
[391237117,1760424645371,-214.73929889,0.00027292,2]
[391237119,1760424645381,-55555.0,0.00027297,3]
[391237121,1760424645390,-1114.53873012,0.00027297,2]
[391237123,1760424645401,-298.72439657,0.00027297,2]
[391237125,1760424645410,-1943.30040783,0.00027297,2]
[391237126,1760424645419,-777.71334176,0.00027297,2]
[391237127,1760424645428,-214.73929889,0.00027297,2]
[391237128,1760424645438,-176.75820189,0.00027297,5]
[391237129,1760424645447,-733.77065602,0.00027297,2]
[391237130,1760424645457,-334.5472959,0.00027309,2]
[391237131,1760424645467,-388.93933547,0.00027309,2]
[391237132,1760424645477,-10195.8111096,0.00027322,2]
[391237133,1760424645486,-296.0,0.00027332,2]
[391237134,1760424645496,-10195.8111096,0.0002735,2]
[391237135,1760424645506,-30587.4333289,0.00027357,2]
[391237136,1760424645515,-20391.6222193,0.0002736,2]
[391237137,1760424645524,-10195.8111096,0.00027363,2]
[391237138,1760424645534,-3388.0,0.0002737,2]
[391237139,1760424645544,-43200.0,0.0002737,2]
[391237140,1760424645553,-500.0,0.00027373,2]
[391237141,1760424645568,-500.0,0.00027373,2]
[391237142,1760424645578,-500.0,0.00027373,2]
[391237143,1760424645587,-500.0,0.00027373,2]
[391237144,1760424645596,-330.07541042,0.00027373,2]
[391237145,1760424645606,-500.0,0.00027373,2]
[391237146,1760424645615,-91762.2999867,0.00027377,2]
[391237147,1760424645624,-492983.79678239,0.00027387,2]
[391237148,1760424645635,-1993.13780843,0.00027387,2]
[391237149,1760424645644,-40783.2444385,0.00027387,2]
[391237150,1760424645652,-239.25463556,0.00027387,2]
[391237165,1760424646042,-239.25463556,0.00027387,2]
[391237167,1760424646052,-321.21169366,0.00027389,2]
[391237168,1760424646067,-266.85465194,0.00027389,2]
[391237169,1760424646076,-500.0,0.00027389,2]
[391237170,1760424646087,-187.67123843,0.00027389,2]
[391237172,1760424646096,-616.06204714,0.00027389,2]
[391237173,1760424646106,-152.0,0.00027394,4]
[391237174,1760424646115,-150.0,0.00027396,2]
[391237175,1760424646124,-826273.63413912,0.00027397,8]
[391237177,1760424646474,-27982.49999999,0.00027397,8]
[391237181,1760424646525,-1874.60658904,0.000249,3]
[391237182,1760424646536,-2181.1683925,0.000249,3]
[391237183,1760424646547,-1458.22501846,0.000249,3]
[391237184,1760424646559,-15387.14338154,0.00027397,8]
[391237186,1760424646573,-381.344,0.00027397,8]
[391237188,1760424646589,-283.39470106,0.000244,2]
[391237190,1760424646600,-11210.7224,0.000244,2]
[391237193,1760424646611,-570.88289894,0.000244,2]
[391237195,1760424646621,-592.11710106,0.00027397,8]
[391237198,1760424646643,-616.211465,0.00027397,8]
[391237199,1760424646665,-540.7128296,0.00027397,8]
[391237200,1760424646677,-407.59167863,0.00027397,8]
[391237201,1760424646688,-40264.44016768,0.00027397,8]
[391237202,1760424646719,-317.8499993,0.00027397,8]
[391237203,1760424646730,-1413.49759,0.00027397,8]
[391237204,1760424646741,-1426.81099429,0.00027397,8]
[391237205,1760424646756,-2193.81876822,0.00027397,8]
[391237206,1760424646813,-547.6740206,0.00027397,8]
[391237264,1760424690042,1303.22225558,0.00012,2]
[391237302,1760425040434,150.0,0.00027397,120]
[391237306,1760425230961,10000.0,0.00027397,120]
[391237307,1760425242621,10000.0,0.00027397,120]
[391237495,1760425381890,11487.0,0.00027261,120]
[391237833,1760425818172,1403.62874,0.0002739,120]
[391237888,1760425832465,-150.0,0.00023412,2]
[391237889,1760425832474,-303.3,0.00023646,2]
[391237890,1760425832484,-679.40825833,0.00023646,2]
[391237891,1760425832493,-303.77865518,0.00023653,2]
[391237892,1760425832502,-300.48,0.00023656,2]
[391237893,1760425832512,-304.75,0.0002367,2]
[391237895,1760425832521,-442.47,0.00023671,2]
[391237897,1760425832530,-434.99,0.00023692,2]
[391237898,1760425832540,-433.14,0.00023692,2]
[391237899,1760425832549,-435.4,0.00023692,2]
[391237900,1760425832559,-303.77865513,0.00023693,2]
[391237901,1760425832568,-303.77865513,0.00023733,2]
[391237902,1760425832577,-1200.0,0.00023752,2]
[391237903,1760425832587,-439.97,0.00023753,2]
[391237904,1760425832596,-303.76,0.00023753,2]
[391237905,1760425832608,-302.93,0.00023753,2]
[391237906,1760425832618,-222.00018184,0.00023753,2]
[391237907,1760425832627,-305.8,0.00023753,2]
[391237908,1760425832636,-304.13,0.00023753,2]
[391237909,1760425832645,-305.63,0.00023754,2]
[391237910,1760425832659,-303.89,0.0002376,2]
[391237911,1760425832668,-303.77865513,0.00023773,2]
[391237913,1760425832677,-303.77865513,0.00023813,2]
[391237915,1760425832686,-304.0,0.00023853,2]
[391237916,1760425832696,-304.17,0.00023853,2]
[391237917,1760425832705,-305.9,0.00023853,2]
[391237918,1760425832715,-304.25,0.00023853,2]
[391237919,1760425832724,-303.77865513,0.00023853,2]
[391237920,1760425832734,-303.35,0.00023853,2]
[391237921,1760425832743,-2470.3759748,0.00023854,2]
[391237922,1760425832752,-150.99,0.00023855,2]
[391237923,1760425832761,-301.59,0.00023855,2]
[391237924,1760425832770,-499.99,0.00023867,2]
[391237925,1760425832779,-305.59,0.00023867,2]
[391237926,1760425832788,-301.88,0.00023953,2]
[391237927,1760425832797,-304.04,0.00023953,2]
[391237928,1760425832806,-303.44,0.00023954,2]
[391237929,1760425832815,-304.31,0.00023954,2]
[391237930,1760425832824,-179.19474972,0.00023955,2]
[391237931,1760425838182,-123.37525028,0.00023955,2]
[391237932,1760425838193,-175.18110666,0.00023955,46]
[391237933,1760425838202,-195.19890032,0.00023958,2]
[391237945,1760425840175,-107.26109968,0.00023958,2]
[391237946,1760425840185,-303.42,0.00023975,2]
[391237947,1760425840195,-767.27122941,0.00023985,2]
[391237948,1760425840206,-4289.61028403,0.00023985,2]
[391237949,1760425840218,-2798.52848656,0.00023985,2]
[391237950,1760425840227,-150.0,0.00024053,2]
[391237951,1760425840237,-300.83,0.00024054,2]
[391237952,1760425840246,-301.54,0.00024055,2]
[391237953,1760425840256,-305.2,0.00024055,2]
[391237954,1760425840265,-405.0,0.00024055,2]
[391237955,1760425840499,-302.53,0.00024061,2]
[391237956,1760425840530,-303.14,0.00024061,2]
[391237957,1760425840540,-301.77,0.00024137,2]
[391237958,1760425840550,-200.0,0.00024141,2]
[391237959,1760425840560,-201.6366141,0.00024141,2]
[391237960,1760425840569,-303.23,0.00024144,2]
[391237961,1760425840579,-302.4,0.00024153,2]
[391237963,1760425840588,-300.09,0.00024197,2]
[391237964,1760425840597,-304.73,0.00024198,2]
[391237965,1760425840607,-300.37,0.000242,2]
[391237966,1760425840622,-300.1,0.00024215,2]
[391237967,1760425840635,-302.21,0.00024297,2]
[391237968,1760425840645,-300.04,0.00024297,2]
[391237969,1760425840656,-305.0,0.00024297,2]
[391237970,1760425840670,-301.73,0.00024297,2]
[391237971,1760425840679,-302.05,0.00024298,2]
[391237972,1760425840688,-301.88,0.00024301,2]
[391237973,1760425840698,-250.0,0.00024316,2]
[391237974,1760425840708,-305.5,0.00024321,2]
[391237975,1760425840718,-500.0,0.00024397,2]
[391237976,1760425840727,-500.0,0.00024397,2]
[391237977,1760425840738,-500.0,0.00024397,2]
[391237978,1760425840747,-150.0,0.00024397,2]
[391237979,1760425840757,-500.0,0.00024397,2]
[391237980,1760425840767,-577.0,0.00024397,2]
[391237981,1760425840776,-150.0,0.00024397,2]
[391237982,1760425840786,-250.96135576,0.00024397,2]
[391237983,1760425840795,-150.0,0.00024397,2]
[391237984,1760425840805,-500.0,0.00024397,2]
[391237985,1760425840815,-500.0,0.00024397,2]
[391237986,1760425840824,-150.0,0.00024397,2]
[391237987,1760425840833,-500.0,0.00024397,2]
[391237988,1760425840843,-150.0,0.00024397,2]
[391237989,1760425840853,-500.0,0.00024397,2]
[391237990,1760425840865,-304.09,0.00024397,2]
[391237991,1760425840875,-303.68,0.00024397,2]
[391237992,1760425840884,-305.73,0.00024397,2]
[391237993,1760425840894,-300.29,0.00024397,2]
[391237994,1760425840904,-152.88,0.00024397,2]
[391237995,1760425840914,-303.07,0.00024397,2]
[391237996,1760425840923,-302.15,0.00024397,2]
[391237997,1760425840933,-152.07,0.00024397,2]
[391237998,1760425840943,-300.65,0.00024397,2]
[391237999,1760425840952,-562.1762,0.00024397,2]
[391238000,1760425840962,-500.0,0.00024452,2]
[391238001,1760425840971,-500.0,0.00024452,2]
[391238002,1760425840981,-500.0,0.00024452,2]
[391238003,1760425840990,-500.0,0.00024452,2]
[391238004,1760425841000,-577.0,0.00024452,2]
[391238005,1760425841009,-150.0,0.00024452,2]
[391238006,1760425841019,-500.0,0.00024452,2]
[391238007,1760425841028,-500.0,0.00024452,2]
[391238008,1760425841042,-500.0,0.00024452,2]
[391238009,1760425841052,-500.0,0.00024452,2]
[391238010,1760425841062,-666.0,0.0002449,3]
[391238011,1760425841072,-500.0,0.00024507,2]
[391238012,1760425841082,-500.0,0.00024507,2]
[391238013,1760425841091,-402.10861854,0.00024507,2]
[391238014,1760425841101,-500.0,0.00024507,2]
[391238015,1760425841113,-577.0,0.00024507,2]
[391238016,1760425841123,-200.0,0.00024507,2]
[391238017,1760425841132,-500.0,0.00024507,2]
[391238018,1760425841141,-500.0,0.00024507,2]
[391238019,1760425841151,-500.0,0.00024507,2]
[391238020,1760425841161,-500.0,0.00024507,2]
[391238021,1760425841170,-174.89,0.00024512,2]
[391238022,1760425841180,-170.367,0.00024556,7]
[391238023,1760425841189,-2493.157,0.00024556,7]
[391238024,1760425841199,-500.0,0.00024561,2]
[391238025,1760425841209,-500.0,0.00024561,2]
[391238026,1760425841218,-459.18520318,0.00024561,2]
[391238027,1760425841228,-577.0,0.00024561,2]
[391238028,1760425841237,-500.0,0.00024561,2]
[391238029,1760425841246,-500.0,0.00024561,2]
[391238030,1760425841256,-500.0,0.00024561,2]
[391238031,1760425841266,-500.0,0.00024561,2]
[391238032,1760425841275,-500.0,0.00024616,2]
[391238033,1760425841285,-500.0,0.00024616,2]
[391238034,1760425841294,-577.0,0.00024616,2]
[391238035,1760425841303,-500.0,0.00024616,2]
[391238036,1760425841313,-328.2973038,0.00024616,2]
[391238037,1760425841322,-500.0,0.00024616,2]
[391238038,1760425841332,-534.81885438,0.00024616,2]
[391238039,1760425841341,-150.0,0.00024633,2]
[391238040,1760425841350,-500.0,0.00024658,2]
[391238041,1760425841360,-500.0,0.00024671,2]
[391238042,1760425841371,-500.0,0.00024671,2]
[391238043,1760425841380,-577.0,0.00024671,2]
[391238044,1760425841389,-500.0,0.00024671,2]
[391238045,1760425841399,-500.0,0.00024671,2]
[391238046,1760425841408,-166.66,0.00024685,30]
[391238047,1760425841417,-200.0,0.00024689,2]
[391238048,1760425841429,-500.0,0.00024713,2]
[391238049,1760425841438,-500.0,0.00024726,2]
[391238050,1760425841448,-500.0,0.00024726,2]
[391238051,1760425841457,-577.0,0.00024726,2]
[391238052,1760425841467,-503.46752316,0.00024726,2]
[391238053,1760425841476,-500.0,0.00024726,2]
[391238054,1760425841485,-299.0,0.00024744,2]
[391238055,1760425841495,-20790.23,0.00024746,2]
[391238056,1760425841505,-1126.89,0.00024746,2]
[391238057,1760425841514,-500.0,0.00024768,2]
[391238058,1760425841523,-3854.64928278,0.00024776,2]
[391238059,1760425841533,-23453.47,0.00024779,2]
[391238060,1760425841542,-500.0,0.00024781,2]
[391238061,1760425841552,-500.0,0.00024781,2]
[391238062,1760425841561,-577.0,0.00024781,2]
[391238063,1760425841570,-500.0,0.00024822,2]
[391238064,1760425841579,-500.0,0.00024835,2]
[391238065,1760425841588,-500.0,0.00024835,2]
[391238066,1760425841598,-577.0,0.00024835,2]
[391238067,1760425841607,-500.0,0.00024877,2]
[391238068,1760425841619,-500.0,0.00024885,2]
[391238069,1760425841628,-500.0,0.00024885,2]
[391238070,1760425841639,-513.65737504,0.00024885,2]
[391238071,1760425841648,-500.0,0.00024885,2]
[391238072,1760425841660,-563.73472819,0.00024885,2]
[391238073,1760425841670,-500.0,0.00024885,2]
[391238074,1760425841679,-726.76919387,0.00024885,2]
[391238075,1760425841689,-500.0,0.0002489,2]
[391238076,1760425841699,-500.0,0.0002489,2]
[391238077,1760425841708,-577.0,0.0002489,2]
[391238078,1760425841717,-417.3896,0.00024904,10]
[391238079,1760425841728,-296.0,0.00024923,7]
[391238080,1760425841740,-500.0,0.00024932,2]
[391238081,1760425841750,-500.0,0.00024932,2]
[391238082,1760425841759,-500.0,0.00024945,2]
[391238083,1760425841770,-179.53007047,0.00024945,2]
[391238084,1760425841779,-577.0,0.00024945,2]
[391238085,1760425841790,-7125.91,0.00024963,2]
[391238086,1760425841800,-500.0,0.00024987,2]
[391238087,1760425841810,-182.94933088,0.00025,2]
[391238088,1760425841822,-577.0,0.00025,2]
[391238089,1760425841832,-500.0,0.00025042,2]
[391238090,1760425841842,-577.0,0.00025055,2]
[391238091,1760425841851,-500.0,0.00025096,2]
[391238092,1760425841863,-577.0,0.00025109,2]
[391238093,1760425841873,-296.0,0.00025138,2]
[391238094,1760425841884,-2362.99,0.00025148,2]
[391238095,1760425841894,-500.0,0.00025151,2]
[391238096,1760425841904,-577.0,0.00025164,2]
[391238097,1760425841914,-166.66,0.00025204,30]
[391238098,1760425841924,-500.0,0.00025206,2]
[391238099,1760425841934,-577.0,0.00025219,2]
[391238100,1760425841944,-203.05725991,0.00025237,2]
[391238101,1760425841954,-296.0,0.00025242,2]
[391238102,1760425841964,-500.0,0.00025261,2]
[391238103,1760425841974,-296.0,0.00025269,2]
[391238104,1760425841984,-577.0,0.00025274,2]
[391238105,1760425841994,-1549.68,0.00025293,2]
[391238106,1760425842004,-175.18110666,0.0002531,49]
[391238107,1760425842013,-213.42319111,0.00025316,2]
[391238108,1760425842023,-577.0,0.00025329,2]
[391238109,1760425842033,-200.0,0.00025355,2]
[391238110,1760425842043,-577.0,0.00025383,2]
[391238111,1760425842053,-577.0,0.00025438,2]
[391238112,1760425842063,-577.0,0.00025493,2]
[391238113,1760425842073,-1335.0,0.00025514,2]
[391238114,1760425842083,-577.0,0.00025548,2]
[391238115,1760425842093,-577.0,0.00025602,2]
[391238116,1760425842102,-296.0,0.00025613,2]
[391238117,1760425842113,-594.70917629,0.00025657,2]
[391238118,1760425842122,-166.66,0.00025724,30]
[391238119,1760425842132,-2000.0,0.00025763,2]
[391238120,1760425842142,-2000.0,0.00025763,2]
[391238121,1760425842152,-2000.0,0.00025763,2]
[391238122,1760425842164,-2000.0,0.00025763,2]
[391238123,1760425842173,-9211.34798985,0.00025763,2]
[391238124,1760425842183,-2000.0,0.00025763,2]
[391238125,1760425842192,-2000.0,0.00025763,2]
[391238126,1760425842202,-2111.9259078,0.00025763,2]
[391238127,1760425842214,-257.91778498,0.00025763,2]
[391238128,1760425842224,-249.52036558,0.00025763,2]
[391238129,1760425842239,-646.96532011,0.00025763,2]
[391238130,1760425842248,-721.12765535,0.00025763,2]
[391238131,1760425842258,-322.6107,0.00025763,2]
[391238132,1760425842267,-908.91914782,0.00025779,2]
[391238133,1760425842279,-426.08085218,0.00025779,2]
[391238134,1760425842289,-1680.0,0.00025883,2]
[391238135,1760425842299,-618.79257451,0.00025988,2]
[391238136,1760425842310,-494.6388835,0.00025988,2]
[391238137,1760425842332,-940.10540144,0.00025988,2]
[391238138,1760425842344,-614.1800125,0.00025988,2]
[391238139,1760425842355,-1232.19,0.00025988,2]
[391238140,1760425842369,-2114.48594429,0.00025988,2]
[391238141,1760425842389,-9907.40273844,0.00025988,2]
[391238142,1760425842400,-2000.0,0.00026,2]
[391238143,1760425842410,-1335.0,0.00026067,2]
[391238144,1760425842421,-1583.25,0.00026071,2]
[391238145,1760425842432,-7159.98714694,0.00026088,2]
[391238146,1760425842450,-421.48223619,0.00026088,2]
[391238147,1760425842527,-5168.68908041,0.00026088,2]
[391238148,1760425842538,-500.0,0.00026088,2]
[391238149,1760425842550,-150.0,0.00026088,2]
[391238150,1760425842561,-150.0,0.00026088,2]
[391238151,1760425842571,-150.0,0.00026088,2]
[391238152,1760425842582,-150.0,0.00026088,2]
[391238153,1760425842593,-500.0,0.00026088,2]
[391238154,1760425842604,-500.0,0.00026088,2]
[391238155,1760425842620,-489.0,0.00026089,2]
[391238156,1760425842631,-15921.79555463,0.00026133,2]
[391238157,1760425842642,-500.0,0.00026142,2]
[391238158,1760425842653,-647.29006291,0.00026142,2]
[391238159,1760425842667,-500.0,0.00026143,2]
[391238160,1760425842676,-150.0,0.00026143,2]
[391238161,1760425842687,-153.62294082,0.00026143,2]
[391238162,1760425842698,-500.0,0.00026143,2]
[391238163,1760425842708,-500.0,0.00026143,2]
[391238164,1760425842717,-150.0,0.00026198,2]
[391238165,1760425842728,-150.0,0.00026198,2]
[391238166,1760425842739,-500.0,0.00026198,2]
[391238167,1760425842748,-500.0,0.00026198,2]
[391238168,1760425842758,-489.0,0.00026222,2]
[391238169,1760425842767,-200.0,0.00026237,2]
[391238170,1760425842776,-2500.0,0.00026238,2]
[391238171,1760425842786,-166.66,0.00026244,30]
[391238172,1760425842795,-150.0,0.00026252,2]
[391238173,1760425842805,-500.0,0.00026252,2]
[391238174,1760425842814,-500.0,0.00026252,2]
[391238175,1760425842823,-15921.79555463,0.00026279,2]
[391238176,1760425842834,-700.0,0.000263,9]
[391238177,1760425842844,-150.0,0.00026307,2]
[391238178,1760425842854,-500.0,0.00026307,2]
[391238179,1760425842867,-156.45575434,0.00026307,2]
[391238180,1760425842877,-153.71,0.00026321,2]
[391238181,1760425842887,-635.0,0.00026343,7]
[391238182,1760425842896,-202.0373281,0.00026362,2]
[391238183,1760425842907,-500.0,0.00026362,2]
[391238184,1760425842918,-489.0,0.00026396,7]
[391238185,1760425842928,-1500.0,0.000264,9]
[391238186,1760425842938,-500.0,0.00026417,2]
[391238187,1760425842949,-15921.79555463,0.00026424,2]
[391238188,1760425842960,-635.0,0.00026437,2]
[391238189,1760425842970,-500.0,0.00026472,2]
[391238191,1760425842980,-2300.0,0.000265,9]
[391238193,1760425842993,-225.44,0.00026504,2]
[391238195,1760425843003,-500.0,0.00026526,2]
[391238196,1760425843013,-305.8623,0.00026546,2]
[391238197,1760425843023,-1000.0,0.00026546,2]
[391238198,1760425843033,-15921.79555463,0.0002657,2]
[391238199,1760425843043,-3034.1113372,0.00026574,2]
[391238200,1760425843054,-500.0,0.00026581,2]
[391238201,1760425843064,-3100.0,0.000266,9]
[391238202,1760425843073,-500.0,0.00026636,2]
[391238203,1760425843083,-1000.0,0.00026645,2]
[391238204,1760425843095,-175.18110666,0.00026665,52]
[391238205,1760425843105,-265.04337206,0.00026691,2]
[391238206,1760425843122,-3900.0,0.000267,9]
[391238207,1760425843132,-489.0,0.00026708,2]
[391238208,1760425843142,-8476.78010253,0.00026714,2]
[391238209,1760425843151,-15921.79555463,0.00026715,2]
[391238210,1760425843161,-635.0,0.00026724,2]
[391238211,1760425843171,-166.66,0.00026763,30]
[391238212,1760425843181,-700.0,0.000268,9]
[391238213,1760425843191,-489.0,0.00026816,2]
[391238214,1760425843200,-8476.78010253,0.00026851,2]
[391238215,1760425843210,-15921.79555463,0.00026861,2]
[391238216,1760425843221,-700.0,0.000269,9]
[391238217,1760425843231,-352.7226541,0.00026954,2]
[391238218,1760425843241,-352.72265405,0.00026992,2]
[391238219,1760425843251,-8476.78010253,0.00026996,2]
[391238220,1760425843260,-172.0,0.00027,7]
[391238221,1760425843270,-1000.0,0.00027,2]
[391238222,1760425843280,-1000.0,0.00027,2]
[391238223,1760425843290,-1000.0,0.00027,2]
[391238224,1760425843299,-1000.0,0.00027,2]
[391238225,1760425843309,-1000.0,0.00027,2]
[391238226,1760425843319,-15921.79555463,0.00027006,2]
[391238227,1760425843329,-352.72265405,0.0002703,2]
[391238228,1760425843338,-225.44,0.00027033,2]
[391238229,1760425843739,-277.13137731,0.00027038,2]
[391238230,1760425843749,-54165.83186382,0.00027041,2]
[391238231,1760425843760,-8476.78010253,0.00027044,2]
[391238232,1760425843769,-1228.53217134,0.00027045,2]
[391238233,1760425843778,-41317.36463729,0.00027046,2]
[391238234,1760425843787,-41317.36463729,0.00027047,2]
[391238235,1760425843797,-202069.00743524,0.00027049,2]
[391238236,1760425843807,-210.95574095,0.00027052,2]
[391238237,1760425843817,-963.4388,0.00027054,2]
[391238238,1760425843826,-5000.0,0.00027054,2]
[391238239,1760425843836,-3873.53329496,0.00027054,2]